bitfinex/quotes_ETHUSD_20250628
["timestamp","ask_amount","ask_price","bid_price","bid_amount"]
[1751138782908,0.2048,2439.1,2439.0,0.55]
[1751138783556,12.86859692,2439.1,2438.7,0.55]
[1751138783761,9.42756139,2438.9,2438.6,8.272]
[1751138783918,0.2048,2438.8,2438.7,0.55]
[1751138784119,0.2048,2438.8,2438.6,8.272]
[1751138784331,0.2048,2438.8,2438.7,0.55]
[1751138784581,0.2048,2438.8,2438.6,8.272]
[1751138784961,0.2048,2438.8,2438.7,0.55]
[1751138786627,0.2048,2438.8,2438.7,3.01032722]
[1751138787229,0.2048,2438.8,2438.7,0.55]
[1751138788572,0.2048,2438.8,2438.7,7.144]
[1751138797492,0.2048,2438.8,2438.7,9.60432722]
[1751138800995,0.2048,2438.8,2438.7,7.144]
[1751138801692,0.2048,2438.8,2438.7,9.60432722]
[1751138803959,0.2048,2438.8,2438.7,7.144]
[1751138807594,0.2048,2438.8,2438.5,3.2592971]
[1751138807800,0.2048,2438.8,2438.6,7.144]
[1751138809897,0.2048,2438.8,2438.6,0.55]
[1751138810201,0.2048,2438.8,2438.6,7.144]
[1751138814776,0.2048,2438.8,2438.6,9.60441281]
[1751138815094,0.2048,2438.8,2438.7,3.01032722]
[1751138815400,0.2048,2438.8,2438.7,0.55]
[1751138832926,0.2048,2438.8,2438.7,3.01032722]
[1751138833134,0.2048,2438.8,2438.7,0.55]
[1751138833838,0.2048,2438.8,2438.7,3.01032722]
[1751138835041,0.2048,2438.8,2438.7,0.55]
[1751138836441,0.2048,2438.8,2438.4,2.46057796]
[1751138836613,0.2048,2438.8,2438.6,0.55]
[1751138836614,6.59121429,2438.7,2438.6,0.55]
[1751138844947,6.59121429,2438.7,2438.3,4.95708618]
[1751138845130,0.2048,2438.6,2438.4,0.55]
[1751138845320,0.2048,2438.6,2438.4,7.143]
[1751138847854,0.2048,2438.6,2438.4,0.55]
[1751138848055,0.2048,2438.6,2438.4,7.143]
[1751138850254,2.46063352,2438.4,2438.1,3.0]
[1751138850469,6.59121429,2438.2,2438.1,3.0]
[1751138850629,6.79601429,2438.2,2438.0,0.55]
[1751138851434,6.79601429,2438.2,2437.9,0.55]
[1751138851636,6.79601429,2438.2,2437.9,7.143]
[1751138852358,6.79601429,2438.2,2438.0,2.46097995]
[1751138853349,0.2048,2438.2,2438.0,2.46097995]
[1751138854264,0.2048,2438.2,2438.0,3.26567995]
[1751138858254,0.2048,2438.2,2438.0,9.85967995]
[1751138860070,0.2048,2438.2,2438.0,0.8047]
[1751138860362,0.2048,2438.2,2438.0,7.3987]
[1751138861161,0.2048,2438.2,2438.0,9.8597319]
[1751138861364,0.2048,2438.2,2438.1,2.46093269]
[1751138862162,10.42204593,2438.6,2438.4,0.55]
[1751138862163,0.2048,2438.5,2438.4,0.55]
[1751138862544,0.2048,2438.5,2438.4,3.01062992]
[1751138871161,0.2048,2438.5,2438.4,0.55]
[1751138877489,0.2048,2438.5,2438.4,3.01062992]
[1751138877693,0.2048,2438.5,2438.4,0.55]
[1751138884525,0.2048,2438.5,2438.4,3.01062992]
[1751138884670,0.2048,2438.7,2438.4,3.01062992]
[1751138885279,0.2048,2438.7,2438.4,0.55]
[1751138885485,0.2048,2438.7,2438.4,3.01062992]
[1751138886509,0.2048,2438.7,2438.4,0.55]
[1751138886677,10.0,2438.6,2438.4,0.55]
[1751138887809,10.0,2438.6,2438.5,7.142]
[1751138888310,6.79670207,2438.7,2438.6,3.82602811]
[1751138888311,0.2048,2438.7,2438.6,3.82602811]
[1751138890212,0.2048,2439.1,2438.9,0.55]
[1751138890522,6.59190207,2439.0,2438.9,0.55]
[1751138890674,13.26552546,2438.9,2438.5,2.46044852]
[1751138890874,0.2048,2438.8,2438.6,7.142]
[1751138891116,0.2048,2438.8,2438.7,7.142]
[1751138894097,2.66502634,2438.8,2438.7,7.142]
[1751138895607,2.4603526,2438.7,2438.4,0.2048]
[1751138895814,0.2048,2438.4,2438.1,1.677]
[1751138896009,0.2048,2438.4,2438.3,6.592]
[1751138896598,0.2048,2438.4,2438.3,7.142]
[1751138898711,0.2048,2438.4,2438.1,1.677]
[1751138898914,0.2048,2438.4,2438.2,7.142]
[1751138905120,0.2048,2438.4,2438.2,9.60280306]
[1751138912251,0.2048,2438.4,2438.2,7.142]
[1751138913342,0.2048,2438.4,2438.2,9.60282575]
[1751138913540,0.2048,2438.4,2438.2,7.142]
[1751138921349,0.2048,2438.4,2438.2,9.60282531]
[1751138928558,0.2048,2438.4,2438.2,7.142]
[1751138929554,0.2048,2438.4,2438.2,0.55]
[1751138929774,0.2048,2438.4,2438.3,6.592]
[1751138931034,0.2048,2438.4,2438.3,9.05273083]
[1751138931355,0.2048,2438.4,2438.3,6.592]
[1751138936544,0.2048,2438.4,2438.2,3.01082045]
[1751138936758,0.2048,2438.4,2438.3,6.591]
[1751138938546,0.2048,2438.4,2438.3,9.05173083]
[1751138938739,0.2048,2438.4,2438.3,6.591]
[1751138948674,0.2048,2438.4,2438.2,0.55]
[1751138948876,6.59327296,2438.3,2438.2,0.55]
[1751138949075,0.2048,2438.3,2438.2,7.141]
[1751138957983,0.2048,2438.3,2438.2,6.591]
[1751138958955,9.25881794,2438.3,2438.2,6.591]
[1751138962060,19.25881794,2438.3,2438.2,6.591]
[1751138963463,2.46099563,2438.1,2438.0,6.591]
[1751138963662,2.46099563,2438.1,2438.0,7.141]
[1751138967195,2.66568635,2438.2,2438.0,7.141]
[1751138967798,0.2048,2438.2,2438.0,7.9315]
[1751138968400,2.66563388,2438.2,2438.0,7.9315]
[1751138970403,2.66563388,2438.2,2438.0,1.3405]
[1751138970603,2.66563388,2438.2,2438.1,6.591]
[1751138972404,2.46093269,2438.1,2438.0,0.55]
[1751138972701,9.05420565,2438.1,2438.0,0.55]
[1751138975602,2.46113458,2437.9,2437.8,0.552]
[1751138975772,9.05440754,2437.9,2437.8,0.552]
[1751138976404,9.25920754,2437.9,2437.8,0.552]
[1751138978396,2.66593458,2437.9,2437.8,0.552]
[1751138984017,2.66593458,2437.9,2437.8,0.002]
[1751138985117,13.9150687,2437.9,2437.8,0.002]
[1751138986715,23.34064597,2437.9,2437.8,0.002]
[1751138996026,24.14304597,2437.9,2437.8,0.002]
[1751138997531,30.73404597,2437.9,2437.8,0.002]
[1751139004206,38.65404597,2437.9,2437.8,0.002]
[1751139010651,35.82761232,2437.9,2437.8,0.002]
[1751139026274,29.23661232,2437.9,2437.8,0.002]
[1751139026451,35.82861232,2437.9,2437.8,0.002]
[1751139037283,37.50461232,2437.9,2437.8,0.002]
[1751139044286,42.46123554,2437.8,2437.7,0.002]
[1751139044598,43.4473365,2437.7,2437.6,0.002]
[1751139044756,56.63748012,2437.7,2437.6,0.002]
[1751139045657,57.53748012,2437.7,2437.6,0.002]
[1751139048580,65.45748012,2437.7,2437.6,0.002]
[1751139048781,66.70661424,2437.7,2437.6,0.002]
[1751139057300,36.70661424,2437.7,2437.6,0.002]
[1751139057488,66.70661424,2437.7,2437.6,0.002]
[1751139062080,65.92541424,2437.7,2437.6,0.002]
[1751139062280,35.92541424,2437.7,2437.6,0.002]
[1751139062580,65.92541424,2437.7,2437.6,0.002]
[1751139063613,65.49837142,2437.7,2437.6,0.002]
[1751139064020,34.59837142,2437.7,2437.6,0.7917]
[1751139064179,33.3492373,2437.7,2437.6,0.7917]
[1751139080032,33.3492373,2437.7,2437.6,0.002]
[1751139080330,39.94838092,2437.7,2437.6,0.002]
[1751139080532,33.3492373,2437.7,2437.6,0.002]
[1751139083495,33.3482373,2437.7,2437.6,0.002]
[1751139086041,33.3482373,2437.7,2437.6,0.002]
[1751139103762,26.7582373,2437.7,2437.6,0.002]
[1751139103935,33.3482373,2437.7,2437.6,0.002]
[1751139104131,16.7582373,2437.7,2437.6,0.002]
[1751139104357,16.7582373,2437.7,2437.6,0.7759]
[1751139104718,18.8382373,2437.7,2437.6,0.7759]
[1751139112223,18.8382373,2437.7,2437.6,0.002]
[1751139124872,25.43738092,2437.7,2437.6,0.002]
[1751139125059,32.02538092,2437.7,2437.6,0.002]
[1751139125243,12.46143747,2437.6,2437.5,0.002]
[1751139125639,13.25393747,2437.6,2437.5,0.002]
[1751139127661,14.15393747,2437.6,2437.5,0.002]
[1751139128264,2.46153846,2437.5,2437.4,0.002]
[1751139128465,2.46163945,2437.4,2437.3,0.002]
[1751139128667,2.46196059,2437.1,2436.8,0.002]
[1751139128853,16.45283073,2437.0,2436.8,0.002]
[1751139129061,26.45283073,2437.0,2436.8,0.002]
[1751139130282,33.04083073,2437.0,2436.8,0.002]
[1751139130658,29.27843237,2437.0,2436.8,0.002]
[1751139132244,12.66694452,2436.9,2436.8,0.002]
[1751139132447,12.97155412,2436.9,2436.8,0.002]
[1751139144075,19.56155412,2436.9,2436.8,0.002]
[1751139148911,12.97155412,2436.9,2436.8,0.002]
[1751139149215,2.46199978,2437.1,2437.0,0.55]
[1751139149418,2.46199978,2437.1,2436.8,0.002]
[1751139149419,2.46194247,2437.1,2436.8,1.677]
[1751139149592,9.43588888,2437.2,2436.9,0.55]
[1751139149593,11.89799869,2437.0,2436.9,0.55]
[1751139149796,9.43588888,2437.0,2436.9,1.3425]
[1751139151797,2.46199296,2437.1,2436.9,1.3425]
[1751139152888,2.46204349,2437.0,2436.9,1.3425]
[1751139154107,2.46198027,2437.1,2436.9,1.3425]
[1751139156323,2.46204349,2437.0,2436.9,1.3425]
[1751139157183,11.89776949,2437.2,2436.9,1.3425]
[1751139157387,2.46199435,2437.1,2436.9,1.3425]
[1751139158318,2.46204349,2437.0,2436.9,1.3425]
[1751139158518,12.46214452,2436.9,2436.8,0.002]
[1751139165083,13.36214452,2436.9,2436.8,0.002]
[1751139175141,14.17164452,2436.9,2436.8,0.002]
[1751139175321,20.78864452,2436.9,2436.8,0.002]
[1751139175614,21.5859834,2436.9,2436.8,0.002]
[1751139183733,51.5859834,2436.9,2436.8,0.002]
[1751139184842,21.5859834,2436.9,2436.8,0.002]
[1751139185236,51.5859834,2436.9,2436.8,0.002]
[1751139185847,22.68133549,2436.7,2436.6,0.002]
[1751139186149,30.73231679,2436.7,2436.6,0.002]
[1751139194724,23.33421679,2436.7,2436.6,0.002]
[1751139194924,29.94821679,2436.7,2436.6,0.002]
[1751139223911,23.33421679,2436.7,2436.6,0.002]
[1751139224114,31.62621679,2436.7,2436.6,0.002]
[1751139224476,23.33421679,2436.7,2436.6,0.002]
[1751139224707,30.19023549,2436.7,2436.6,0.002]
[1751139225014,30.18423549,2436.7,2436.6,0.002]
[1751139226685,12.46234661,2436.7,2436.6,0.002]
[1751139226886,19.06734661,2436.7,2436.6,0.8146]
[1751139227086,12.46234661,2436.7,2436.6,0.8146]
[1751139227290,21.89823549,2436.7,2436.6,0.8146]
[1751139240291,12.46234661,2436.7,2436.6,0.8146]
[1751139241525,12.46234661,2436.7,2436.6,0.002]
[1751139248738,25.67239359,2436.7,2436.6,0.002]
[1751139255118,19.0673701,2436.7,2436.6,0.002]
[1751139258039,25.6643701,2436.7,2436.6,0.002]
[1751139259857,32.26939359,2436.7,2436.6,0.002]
[1751139264078,25.6643701,2436.7,2436.6,0.002]
[1751139266366,32.26939359,2436.7,2436.6,0.002]
[1751139268665,25.6643701,2436.7,2436.6,0.002]
[1751139271264,32.26939359,2436.7,2436.6,0.002]
[1751139272058,34.50271377,2436.7,2436.6,0.002]
[1751139272235,62.26939359,2436.7,2436.6,0.002]
[1751139272744,32.26939359,2436.7,2436.6,0.002]
[1751139277359,33.05739359,2436.7,2436.6,0.002]
[1751139281143,63.05739359,2436.7,2436.6,0.002]
[1751139285493,33.05739359,2436.7,2436.6,0.002]
[1751139285699,63.05739359,2436.7,2436.6,0.002]
[1751139286073,33.05739359,2436.7,2436.6,0.002]
[1751139292869,34.73539359,2436.7,2436.6,0.002]
[1751139293274,2.46285198,2436.2,2436.1,0.001]
[1751139293471,12.66765198,2436.2,2436.1,0.001]
[1751139302711,20.09317547,2436.2,2436.1,0.001]
[1751139303613,13.48815198,2436.2,2436.1,0.001]
[1751139304320,14.38815198,2436.2,2436.1,0.001]
[1751139305213,20.16465198,2436.2,2436.1,0.001]
[1751139312632,13.56765198,2436.2,2436.1,0.001]
[1751139312827,20.16465198,2436.2,2436.1,0.001]
[1751139313278,13.56765198,2436.2,2436.1,0.001]
[1751139317000,20.16465198,2436.2,2436.1,0.001]
[1751139317327,13.56765198,2436.2,2436.1,0.001]
[1751139317687,20.16465198,2436.2,2436.1,0.001]
[1751139318333,13.56765198,2436.2,2436.1,0.001]
[1751139318627,20.16465198,2436.2,2436.1,0.001]
[1751139320229,13.56765198,2436.2,2436.1,0.001]
[1751139320426,20.16465198,2436.2,2436.1,0.001]
[1751139321336,13.56765198,2436.2,2436.1,0.001]
[1751139321662,20.16465198,2436.2,2436.1,0.001]
[1751139336640,20.97815198,2436.2,2436.1,0.001]
[1751139337781,52.4631553,2435.9,2435.8,0.001]
[1751139338078,21.90117617,2435.7,2435.6,0.002]
[1751139338368,2.46355984,2435.5,2435.4,0.001]
[1751139338532,29.31687846,2435.5,2435.4,0.001]
[1751139338734,59.31687846,2435.5,2435.4,0.001]
[1751139339263,67.23687846,2435.5,2435.4,0.001]
[1751139339562,23.23006333,2435.2,2435.1,0.002]
[1751139339744,38.86688195,2435.2,2435.1,0.002]
[1751139341341,39.17157676,2435.2,2435.1,0.002]
[1751139342351,39.17257676,2435.2,2435.1,0.002]
[1751139349588,38.40637676,2435.2,2435.1,0.002]
[1751139350372,38.10168195,2435.2,2435.1,0.002]
[1751139350686,29.82168195,2435.2,2435.1,0.002]
[1751139350889,36.42268195,2435.2,2435.1,0.002]
[1751139353874,29.82168195,2435.2,2435.1,0.002]
[1751139354094,26.42368195,2435.2,2435.1,0.002]
[1751139354309,36.42368195,2435.2,2435.1,0.002]
[1751139355413,29.82168195,2435.2,2435.1,0.002]
[1751139355612,36.42368195,2435.2,2435.1,0.002]
[1751139356716,36.42268195,2435.2,2435.1,0.002]
[1751139360706,37.24288195,2435.2,2435.1,0.002]
[1751139361231,67.24288195,2435.2,2435.1,0.002]
[1751139363941,67.54344499,2435.2,2435.1,0.002]
[1751139366138,70.16063936,2435.2,2435.1,0.002]
[1751139366524,71.06063936,2435.2,2435.1,0.002]
[1751139368437,2.46457178,2434.5,2434.4,0.8041]
[1751139368638,2.66937178,2434.5,2434.4,0.8041]
[1751139368941,12.1071904,2434.5,2434.4,0.8041]
[1751139369510,2.46477426,2434.3,2434.2,0.9080986]
[1751139369812,2.66957426,2434.3,2434.2,0.9080986]
[1751139372017,12.66957426,2434.3,2434.2,0.9080986]
[1751139372922,12.66957426,2434.3,2434.2,0.1564986]
[1751139373138,22.10739288,2434.3,2434.2,0.1564986]
[1751139375063,28.70839288,2434.3,2434.2,0.1564986]
[1751139375419,28.50359288,2434.3,2434.2,0.1564986]
[1751139375623,28.50634638,2434.3,2434.2,0.1564986]
[1751139375869,28.50359288,2434.3,2434.2,0.1564986]
[1751139376027,28.69741147,2434.3,2434.2,0.1564986]
[1751139376224,30.37741147,2434.3,2434.2,0.1564986]
[1751139377362,19.26059285,2434.3,2434.2,0.1564986]
[1751139377863,28.69841147,2434.3,2434.2,0.1564986]
[1751139381940,22.09641147,2434.3,2434.2,0.1564986]
[1751139382234,28.69841147,2434.3,2434.2,0.1564986]
[1751139382462,22.09641147,2434.3,2434.2,0.1564986]
[1751139382760,28.69841147,2434.3,2434.2,0.1564986]
[1751139382932,19.26059285,2434.3,2434.2,0.1564986]
[1751139386341,28.69841147,2434.3,2434.2,0.1564986]
[1751139386742,29.47031147,2434.3,2434.2,0.1564986]
[1751139390465,42.66967552,2434.2,2434.1,0.001]
[1751139390654,43.45407552,2434.2,2434.1,0.001]
[1751139390967,43.85151377,2434.2,2434.1,0.001]
[1751139392459,22.13851377,2434.2,2434.1,0.001]
[1751139392655,52.13851377,2434.2,2434.1,0.001]
[1751139394239,52.13951377,2434.2,2434.1,0.001]
[1751139394752,51.35411377,2434.2,2434.1,0.001]
[1751139396583,21.35511377,2434.2,2434.1,0.001]
[1751139399687,14.74711377,2434.2,2434.1,0.001]
[1751139399860,21.35811377,2434.2,2434.1,0.001]
[1751139400490,19.67711377,2434.2,2434.1,0.001]
[1751139400992,17.21223825,2434.2,2434.1,0.7789]
[1751139401391,10.60223825,2434.2,2434.1,0.7789]
[1751139401708,0.60223825,2434.2,2434.1,1.65330689]
[1751139403008,0.39743825,2434.2,2434.1,4.11828367]
[1751139403308,0.39743825,2434.2,2434.1,4.32308367]
[1751139406502,0.39743825,2434.2,2434.1,1.85810689]
[1751139407197,0.39743825,2434.2,2434.1,4.32308367]
[1751139411275,0.39743825,2434.2,2434.1,1.85810689]
[1751139411471,2.46459644,2434.5,2434.2,0.55]
[1751139412306,2.46459644,2434.5,2434.2,0.98231339]
[1751139417288,12.66931102,2434.6,2434.2,0.98231339]
[1751139417500,12.66931102,2434.6,2434.3,0.7983]
[1751139417700,2.46432184,2434.8,2434.4,0.55]
[1751139417874,0.2048,2434.7,2434.4,1.27602202]
[1751139418076,10.2048,2434.7,2434.4,1.27602202]
[1751139418276,12.66918369,2434.7,2434.4,0.55]
[1751139420008,2.46448069,2434.6,2434.4,0.55]
[1751139420407,2.46457719,2434.5,2434.3,0.7983]
[1751139420632,11.90239581,2434.5,2434.2,0.55]
[1751139420977,12.72289581,2434.5,2434.1,0.2058]
[1751139421282,2.46472412,2434.4,2434.2,0.55]
[1751139422515,10.2048,2434.6,2434.3,0.8267]
[1751139422716,0.2048,2434.6,2434.4,0.55]
[1751139422889,10.2048,2434.7,2434.4,0.55]
[1751139423409,10.2048,2434.7,2434.4,3.01466264]
[1751139423917,0.2048,2434.7,2434.4,3.01466264]
[1751139427123,0.2048,2434.7,2434.6,0.55]
[1751139427724,0.2048,2434.7,2434.5,0.55]
[1751139431221,0.2048,2434.7,2434.6,1.3039]
[1751139435531,0.2048,2434.7,2434.6,0.55]
[1751139438329,10.0,2434.9,2434.7,0.55]
[1751139438634,10.2048,2434.9,2434.7,0.55]
[1751139441340,10.2048,2434.9,2434.6,0.55]
[1751139441843,10.9,2434.8,2434.6,0.55]
[1751139442646,0.9,2434.8,2434.6,0.55]
[1751139444745,10.2048,2434.9,2434.6,0.55]
[1751139449118,0.2048,2434.9,2434.6,3.76444468]
[1751139449317,10.2048,2434.9,2434.6,3.76444468]
[1751139449625,10.2048,2434.9,2434.6,1.3]
[1751139450557,22.10680923,2434.9,2434.6,0.55]
[1751139450719,2.46434869,2434.8,2434.6,0.55]
[1751139451348,22.89533979,2434.9,2434.6,0.55]
[1751139452224,0.9,2434.7,2434.6,0.55]
[1751139452633,10.0,2434.8,2434.6,0.55]
[1751139454248,12.46428258,2434.8,2434.5,0.2048]
[1751139454553,11.90224034,2434.7,2434.2,3.24462756]
[1751139454753,9.43781862,2434.5,2434.3,0.55]
[1751139455051,0.2048,2434.4,2434.1,0.001]
[1751139455227,0.2048,2434.4,2434.1,0.551]
[1751139455721,0.2048,2434.4,2434.1,0.001]
[1751139456749,0.2048,2434.4,2434.1,0.551]
[1751139458246,0.2048,2434.4,2434.1,3.01596988]
[1751139460070,0.2048,2434.4,2434.1,0.551]
[1751139460691,0.2048,2434.4,2434.1,3.01596857]
[1751139463461,0.2048,2434.4,2434.1,0.551]
[1751139463775,0.2048,2434.4,2434.1,3.0159748]
[1751139465463,0.2048,2434.4,2434.1,0.551]
[1751139465975,0.7667,2434.3,2434.1,0.551]
[1751139471356,12.66930103,2434.3,2434.1,0.551]
[1751139472258,10.20451862,2434.3,2434.1,0.551]
[1751139475581,12.66929875,2434.3,2434.1,0.551]
[1751139477014,10.20451862,2434.3,2434.1,0.001]
[1751139477161,12.46487552,2434.2,2434.1,0.001]
[1751139482219,19.06787552,2434.2,2434.1,0.001]
[1751139483771,12.46487552,2434.2,2434.1,0.001]
[1751139485565,13.25087552,2434.2,2434.1,0.001]
[1751139492017,2.46573653,2433.4,2433.2,0.7578]
[1751139492312,12.6705872,2433.3,2433.2,0.001]
[1751139493013,0.2048,2433.3,2433.2,1.3078]
[1751139493178,0.2048,2433.3,2433.2,4.17165657]
[1751139493374,0.2048,2433.3,2433.2,3.62165657]
[1751139493579,0.2048,2433.3,2433.2,1.70576803]
[1751139494479,6.605,2433.7,2433.3,3.01571955]
[1751139494712,0.2048,2433.6,2433.3,3.01571955]
[1751139494898,0.2048,2433.6,2433.4,0.7568]
[1751139495409,10.0,2433.5,2433.2,0.7558]
[1751139496221,10.0,2433.5,2433.4,0.55]
[1751139499189,10.0,2433.5,2433.4,1.3068]
[1751139501018,19.43781862,2433.5,2433.3,0.55]
[1751139501389,10.0,2433.5,2433.3,0.55]
[1751139502302,13.25868742,2433.5,2433.3,0.55]
[1751139503212,2.46568587,2433.4,2433.3,0.55]
[1751139503413,12.46568587,2433.4,2433.3,0.55]
[1751139504320,12.46568587,2433.4,2433.2,0.551]
[1751139505224,10.0,2433.4,2433.2,0.551]
[1751139507218,2.46569503,2433.4,2433.2,0.551]
[1751139508425,12.46569503,2433.4,2433.2,0.551]
[1751139509226,10.0,2433.4,2433.2,0.551]
[1751139514041,0.2048,2433.5,2433.2,3.41481049]
[1751139514240,0.2048,2433.7,2433.4,0.55]
[1751139517637,0.2048,2433.7,2433.4,3.01564785]
[1751139518621,0.2048,2433.7,2433.5,2.46558451]
[1751139519752,0.2048,2433.7,2433.4,3.01563327]
[1751139519959,0.2048,2433.7,2433.4,3.65949019]
[1751139520746,10.2048,2434.0,2433.6,0.55]
[1751139520935,0.2048,2434.0,2433.8,0.55]
[1751139523127,0.2048,2434.0,2433.8,3.01520375]
[1751139523334,0.2048,2434.0,2433.8,3.6441248]
[1751139524437,10.0,2434.3,2434.0,1.3586]
[1751139524643,10.2048,2434.3,2434.0,1.3586]
[1751139525960,0.2048,2434.3,2434.0,3.82362445]
[1751139530364,2.30385648,2434.4,2434.2,3.82247552]
[1751139531163,2.30385648,2434.4,2434.3,3.01477426]
[1751139531767,2.30385648,2434.4,2434.3,0.55]
[1751139532768,2.30385648,2434.4,2434.3,3.01477426]
[1751139533664,2.30385648,2434.4,2434.3,3.64350523]
[1751139533865,2.30385648,2434.4,2434.3,3.84830523]
[1751139536250,2.30385648,2434.4,2434.3,1.38353097]
[1751139536651,2.30385648,2434.4,2434.3,1.17873097]
[1751139536860,12.30385648,2434.4,2434.3,0.55]
[1751139540569,2.30385648,2434.4,2434.3,0.55]
[1751139547701,2.30385648,2434.4,2434.3,3.01477426]
[1751139547990,2.30385648,2434.4,2434.3,0.55]
[1751139549006,2.30385648,2434.4,2434.3,1.353]
[1751139549201,2.30385648,2434.4,2434.3,5.12782689]
[1751139549565,2.30385648,2434.4,2434.3,5.33262689]
[1751139555110,2.30385648,2434.4,2434.3,2.86785263]
[1751139558395,2.30385648,2434.4,2434.3,5.33262689]
[1751139558896,2.30385648,2434.4,2434.3,2.86785263]
[1751139559698,2.30385648,2434.4,2434.3,0.7548]
[1751139564374,5.5890295,2434.4,2434.3,7.157]
[1751139564571,5.5890295,2434.4,2434.3,0.55]
[1751139567486,3.12435648,2434.4,2434.3,0.55]
[1751139570510,3.12435648,2434.4,2434.2,6.607]
[1751139571390,3.12435648,2434.4,2434.0,2.66982119]
[1751139571612,3.12435648,2434.4,2434.1,7.157]
[1751139572420,5.58903454,2434.4,2434.1,7.156]
[1751139572590,5.58903454,2434.4,2434.1,0.55]
[1751139572779,5.58903454,2434.4,2434.1,7.156]
[1751139573482,3.12435648,2434.4,2434.1,7.156]
[1751139577522,10.8205,2434.4,2434.1,7.156]
[1751139584026,10.8205,2434.4,2434.1,9.62097485]
[1751139592246,10.2048,2434.5,2434.2,2.4648739]
[1751139593210,10.2048,2434.5,2434.1,9.62092453]
[1751139594248,10.2048,2434.5,2434.2,2.46487357]
[1751139596153,10.2048,2434.5,2434.1,9.62093614]
[1751139597759,10.2048,2434.5,2434.2,2.46486559]
[1751139599368,10.2048,2434.5,2434.1,9.62094139]
[1751139600056,10.2048,2434.5,2434.2,2.46487171]
[1751139600418,0.2048,2434.5,2434.1,7.156]
[1751139600623,10.0,2434.8,2434.4,3.25337302]
[1751139600895,0.2048,2434.7,2434.5,2.4645382]
[1751139601443,0.2048,2434.7,2434.4,9.85731453]
[1751139601860,0.2048,2434.7,2434.6,3.01447054]
[1751139602158,0.2068,2435.1,2434.9,2.46411436]
[1751139602354,0.002,2435.1,2435.0,0.55]
[1751139603543,10.002,2435.1,2435.0,0.55]
[1751139603757,10.002,2435.1,2435.0,7.154]
[1751139604553,0.002,2435.1,2435.0,7.154]
[1751139605147,3.226985,2435.0,2434.5,3.01450964]
[1751139605368,0.2048,2434.8,2434.6,6.604]
[1751139609181,0.2048,2434.8,2434.5,2.46456324]
[1751139609481,0.2048,2434.8,2434.6,6.604]
[1751139609978,0.2048,2434.8,2434.5,2.46456324]
[1751139610150,0.2048,2434.8,2434.7,6.604]
[1751139613599,10.2048,2434.8,2434.4,0.2048]
[1751139613790,1.0253,2434.7,2434.5,6.603]
[1751139616213,1.0253,2434.7,2434.4,0.55]
[1751139616512,1.0253,2434.7,2434.5,6.603]
[1751139616913,1.0253,2434.7,2434.4,0.55]
[1751139617316,1.0253,2434.7,2434.5,6.603]
[1751139617916,3.48967108,2434.7,2434.3,2.46476463]
[1751139618112,0.2048,2434.6,2434.4,6.604]
[1751139618616,12.66927622,2434.6,2434.3,7.154]
[1751139620430,0.2048,2434.6,2434.3,9.6187619]
[1751139621217,0.2048,2434.6,2434.3,7.154]
[1751139621926,0.2048,2434.6,2434.3,9.61877224]
[1751139624617,0.2048,2434.6,2434.3,9.61869297]
[1751139625187,0.2048,2434.6,2434.3,7.154]
[1751139628028,0.2048,2434.6,2434.3,9.61876754]
[1751139628526,10.24221554,2434.4,2433.8,0.791]
[1751139628724,10.0,2434.3,2433.9,9.06910389]
[1751139629028,12.46478693,2434.3,2433.9,6.604]
[1751139633129,2.46502362,2434.1,2433.7,0.55]
[1751139633327,3.22782404,2434.2,2433.8,6.604]
[1751139633694,0.7629,2434.2,2433.9,0.55]
[1751139633929,10.0,2434.5,2434.1,2.46496933]
[1751139634316,10.0,2434.5,2434.2,2.46486349]
[1751139634624,9.601,2434.7,2434.1,0.55]
[1751139634625,12.06541013,2434.7,2434.1,0.55]
[1751139634826,10.0,2434.6,2434.3,0.55]
[1751139635128,10.0,2434.6,2434.3,3.80597009]
[1751139635794,10.0,2434.6,2434.4,2.46461498]
[1751139636437,9.87601498,2435.0,2434.5,2.46457178]
[1751139636602,10.0,2434.9,2434.5,2.46457178]
[1751139637423,0.9,2434.7,2434.5,2.46457178]
[1751139638501,0.9,2434.7,2434.4,0.55]
[1751139640640,0.002,2435.1,2434.6,1.3801]
[1751139640824,0.002,2435.1,2435.0,3.0140657]
[1751139641065,0.002,2435.1,2435.0,4.39198854]
[1751139649253,0.002,2435.1,2434.7,0.7672]
[1751139649571,3.28484924,2434.8,2434.3,2.46471735]
[1751139649758,10.0,2434.6,2434.2,4.90342644]
[1751139649964,10.0,2434.6,2434.2,10.76382644]
[1751139650150,10.0,2434.6,2434.2,13.14817369]
[1751139650351,10.0,2434.6,2434.2,6.52917369]
[1751139650593,12.4644761,2434.6,2434.2,8.3]
[1751139650762,12.6692761,2434.6,2434.2,8.5048]
[1751139650966,12.6692761,2434.6,2434.3,0.55]
[1751139651605,12.6692761,2434.6,2434.2,8.5048]
[1751139651754,12.6692761,2434.6,2434.3,0.55]
[1751139653692,10.2048,2434.6,2434.3,0.55]
[1751139654355,2.66927831,2434.6,2434.3,0.55]
[1751139654555,0.2048,2434.6,2434.3,0.55]
[1751139654788,2.66930732,2434.6,2434.3,0.55]
[1751139656687,0.2048,2434.6,2434.3,0.55]
[1751139668825,10.0,2434.5,2434.3,0.55]
[1751139669122,10.2048,2434.6,2434.3,0.55]
[1751139670327,10.2048,2434.6,2434.3,3.01476392]
[1751139670626,10.2048,2434.6,2434.3,0.55]
[1751139671200,12.66927581,2434.6,2434.3,0.55]